fUSD/lending_fUSD_20250628
["ID","MTS","AMOUNT","RATE_DAILY","PERIOD"]
[368270717,1751082665372,-616.03968354,0.00045479,60]
[368270718,1751082665382,-402.886848,0.00045479,14]
[368270719,1751082665392,-521.01293015,0.00045479,60]
[368270720,1751082665402,-402.886848,0.00045479,14]
[368270721,1751082665413,-490.0,0.00045479,60]
[368270722,1751082665423,-803.37,0.00045479,60]
[368270723,1751082665432,-266.33984807,0.00045479,60]
[368270724,1751082665442,-402.886848,0.00045479,14]
[368270725,1751082665451,-402.886854,0.00045479,14]
[368270726,1751082665460,-490.0,0.00045479,60]
[368270727,1751082665469,-682.71,0.00045479,60]
[368270728,1751082665478,-786.52,0.00045479,60]
[368270729,1751082665487,-490.0,0.00045479,60]
[368270730,1751082665497,-500.0,0.00045479,120]
[368270731,1751082665506,-490.0,0.00045479,60]
[368270732,1751082665515,-1920.6,0.00045479,60]
[368270733,1751082665524,-574.76,0.00045479,60]
[368270734,1751082665533,-1072.62,0.00045479,60]
[368270735,1751082665542,-1312.78,0.00045479,60]
[368270736,1751082665551,-2815.27,0.00045479,60]
[368270737,1751082665560,-723.8,0.00045479,60]
[368270738,1751082665569,-490.0,0.00045479,60]
[368270739,1751082665579,-490.0,0.00045479,60]
[368270740,1751082665588,-1033.45,0.00045479,60]
[368270741,1751082665597,-490.0,0.00045479,60]
[368270742,1751082665719,-503.57705187,0.00045479,60]
[368270743,1751082665729,-2346.56,0.00045479,60]
[368270744,1751082665739,-687.64,0.00045479,60]
[368270745,1751082665748,-678.93,0.00045479,60]
[368270746,1751082665758,-490.0,0.00045479,60]
[368270747,1751082665767,-473.69453418,0.00045479,60]
[368270748,1751082665776,-927.25,0.00045479,60]
[368270749,1751082665786,-747.75,0.00045479,60]
[368270750,1751082665796,-490.0,0.00045479,60]
[368270751,1751082665805,-1025.89,0.00045479,60]
[368270752,1751082665815,-490.0,0.00045479,60]
[368270753,1751082665824,-982.12,0.00045479,60]
[368270754,1751082665835,-1497.8,0.00045479,60]
[368270755,1751082665844,-320.87,0.00045479,60]
[368270756,1751082665854,-823.14,0.00045479,60]
[368270757,1751082665864,-490.0,0.00045479,60]
[368270758,1751082665874,-490.0,0.00045479,60]
[368270759,1751082665884,-490.0,0.00045479,60]
[368270760,1751082665894,-490.0,0.00045479,60]
[368270761,1751082665904,-490.0,0.00045479,60]
[368270762,1751082665914,-10416.89,0.00045479,60]
[368270763,1751082665924,-940.78,0.00045479,60]
[368270764,1751082665933,-490.0,0.00045479,60]
[368270765,1751082665945,-490.0,0.00045479,60]
[368270766,1751082665956,-490.0,0.00045479,60]
[368270767,1751082665965,-688.66,0.00045479,60]
[368270768,1751082665975,-490.0,0.00045479,60]
[368270769,1751082665985,-490.0,0.00045479,60]
[368270770,1751082665994,-490.0,0.00045479,60]
[368270771,1751082666004,-1596.4,0.00045479,60]
[368270772,1751082666013,-490.0,0.00045479,60]
[368270773,1751082666023,-490.0,0.00045479,60]
[368270774,1751082666033,-737.29,0.00045479,60]
[368270775,1751082666042,-313.49407073,0.00045479,60]
[368270776,1751082666052,-490.0,0.00045479,60]
[368270777,1751082666062,-721.19,0.00045479,60]
[368270778,1751082666071,-512.83,0.00045479,60]
[368270779,1751082666081,-656.57,0.00045479,60]
[368270780,1751082666090,-490.0,0.00045479,60]
[368270781,1751082666099,-490.0,0.00045479,60]
[368270782,1751082666109,-1121.37,0.00045479,60]
[368270783,1751082666119,-490.0,0.00045479,60]
[368270784,1751082666130,-490.0,0.00045479,60]
[368270785,1751082666140,-1360.23,0.00045479,60]
[368270786,1751082666149,-490.0,0.00045479,60]
[368270787,1751082666159,-490.0,0.00045479,60]
[368270788,1751082666168,-2863.29,0.00045479,60]
[368270789,1751082666178,-490.0,0.00045479,60]
[368270790,1751082666187,-490.0,0.00045479,60]
[368270791,1751082666198,-792.2,0.00045479,60]
[368270792,1751082666208,-1395.11,0.00045479,60]
[368270793,1751082666217,-490.0,0.00045479,60]
[368270794,1751082666226,-490.0,0.00045479,60]
[368270795,1751082666235,-804.17,0.00045479,60]
[368270796,1751082666244,-490.0,0.00045479,60]
[368270797,1751082666254,-193.07390411,0.00045479,60]
[368270798,1751082666263,-524.69,0.00045479,60]
[368270799,1751082666272,-490.0,0.00045479,60]
[368270800,1751082666281,-778.19,0.00045479,60]
[368270801,1751082666290,-983.74,0.00045479,60]
[368270802,1751082666300,-490.0,0.00045479,60]
[368270803,1751082666310,-4629.37,0.00045479,60]
[368270804,1751082666319,-1392.7,0.00045479,60]
[368270805,1751082666329,-490.0,0.00045479,60]
[368270806,1751082666343,-490.0,0.00045479,60]
[368270807,1751082666352,-490.0,0.00045479,60]
[368270808,1751082666362,-1084.9,0.00045479,60]
[368270809,1751082666374,-490.0,0.00045479,60]
[368270810,1751082666384,-1574.76,0.00045479,60]
[368270811,1751082666394,-1175.66,0.00045479,60]
[368270812,1751082666404,-1138.79,0.00045479,60]
[368270813,1751082666415,-490.0,0.00045479,60]
[368270814,1751082666426,-490.0,0.00045479,60]
[368270815,1751082666436,-490.0,0.00045479,60]
[368270816,1751082666445,-1019.73,0.00045479,60]
[368270817,1751082666455,-490.0,0.00045479,60]
[368270818,1751082666464,-844.38,0.00045479,60]
[368270819,1751082666475,-319.19364123,0.00045479,60]
[368270820,1751082666485,-490.0,0.00045479,60]
[368270821,1751082666496,-299.05096486,0.00045479,60]
[368270822,1751082666506,-776.98,0.00045479,60]
[368270823,1751082666518,-738.84,0.00045479,60]
[368270824,1751082666527,-490.0,0.00045479,60]
[368270825,1751082666536,-490.0,0.00045479,60]
[368270826,1751082666546,-490.0,0.00045479,60]
[368270827,1751082666555,-490.0,0.00045479,60]
[368270828,1751082666563,-615.04703143,0.00045479,60]
[368270829,1751082666573,-495.20200495,0.00045479,60]
[368270830,1751082666582,-821.18,0.00045479,60]
[368270831,1751082666591,-1590.48,0.00045479,60]
[368270832,1751082666600,-1128.3,0.00045479,60]
[368270833,1751082666610,-589.0,0.00045479,60]
[368270834,1751082666621,-490.0,0.00045479,60]
[368270835,1751082666631,-490.0,0.00045479,60]
[368270836,1751082666641,-917.49,0.00045479,60]
[368270837,1751082666650,-797.25,0.00045479,60]
[368270838,1751082666659,-530.81848381,0.00045479,60]
[368270839,1751082666668,-490.0,0.00045479,60]
[368270840,1751082666677,-863.15,0.00045479,60]
[368270841,1751082666685,-286.56877907,0.00045479,60]
[368270842,1751082666695,-2576.91,0.00045479,60]
[368270843,1751082666704,-490.0,0.00045479,60]
[368270844,1751082666714,-1437.67,0.00045479,60]
[368270845,1751082666723,-490.0,0.00045479,60]
[368270846,1751082666732,-490.0,0.00045479,60]
[368270847,1751082666742,-490.0,0.00045479,60]
[368270848,1751082666751,-4726.93,0.00045479,60]
[368270849,1751082666760,-516.48,0.00045479,60]
[368270850,1751082666769,-490.0,0.00045479,60]
[368270851,1751082666779,-490.0,0.00045479,60]
[368270852,1751082666788,-490.0,0.00045479,60]
[368270853,1751082666798,-490.0,0.00045479,60]
[368270854,1751082666807,-490.0,0.00045479,60]
[368270855,1751082666816,-2001.1,0.00045479,14]
[368270856,1751082666825,-87706.84,0.00045479,60]
[368270857,1751082666834,-591.46,0.00045479,60]
[368270858,1751082666843,-490.0,0.00045479,60]
[368270859,1751082666852,-494.74,0.00045479,60]
[368270860,1751082666862,-856.21,0.00045479,60]
[368270861,1751082666871,-490.0,0.00045479,60]
[368270862,1751082666881,-490.0,0.00045479,60]
[368270863,1751082666891,-1129.72,0.00045479,60]
[368270864,1751082666901,-502.82,0.00045479,60]
[368270865,1751082666910,-2273.84,0.00045479,60]
[368270866,1751082666920,-490.0,0.00045479,60]
[368270867,1751082666929,-1353.33,0.00045479,60]
[368270868,1751082666939,-490.0,0.00045479,60]
[368270869,1751082666948,-2262.29,0.00045479,60]
[368270870,1751082666958,-490.0,0.00045479,60]
[368270871,1751082666967,-490.0,0.00045479,60]
[368270872,1751082666978,-843.07,0.00045479,60]
[368270873,1751082666988,-752.34,0.00045479,60]
[368270874,1751082666997,-490.0,0.00045479,60]
[368270875,1751082667007,-490.0,0.00045479,60]
[368270876,1751082667016,-560.88,0.00045479,60]
[368270877,1751082667025,-515.43853423,0.00045479,60]
[368270878,1751082667036,-490.0,0.00045479,60]
[368270879,1751082667046,-490.0,0.00045479,60]
[368270880,1751082667056,-869.82,0.00045479,60]
[368270881,1751082667066,-490.0,0.00045479,60]
[368270882,1751082667076,-153.71864,0.00045479,14]
[368270883,1751082667085,-490.0,0.00045479,60]
[368270884,1751082667095,-490.0,0.00045479,60]
[368270885,1751082667104,-899.36,0.00045479,60]
[368270886,1751082667114,-1722.26,0.00045479,60]
[368270887,1751082667124,-490.0,0.00045479,60]
[368270888,1751082667134,-1113.17,0.00045479,60]
[368270889,1751082667143,-1514.11,0.00045479,60]
[368270890,1751082667153,-490.0,0.00045479,60]
[368270891,1751082667163,-515.37,0.00045479,60]
[368270892,1751082667173,-490.0,0.00045479,60]
[368270893,1751082667182,-595.41,0.00045479,60]
[368270894,1751082667191,-364.31993189,0.00045479,60]
[368270895,1751082667201,-1179.46,0.00045479,60]
[368270896,1751082667210,-803.93,0.00045479,60]
[368270897,1751082667219,-593.00134831,0.00045479,60]
[368270898,1751082667230,-739.75,0.00045479,60]
[368270899,1751082667239,-2144.44,0.00045479,60]
[368270900,1751082667249,-490.0,0.00045479,60]
[368270901,1751082667258,-949.97,0.00045479,60]
[368270902,1751082667267,-1124.86,0.00045479,60]
[368270903,1751082667276,-490.0,0.00045479,60]
[368270904,1751082667286,-490.0,0.00045479,60]
[368270905,1751082667295,-556.02080415,0.00045479,60]
[368270906,1751082667305,-372.94325313,0.00045479,2]
[368270907,1751082667314,-496.37,0.00045479,60]
[368270908,1751082667323,-490.0,0.00045479,60]
[368270909,1751082667332,-490.0,0.00045479,60]
[368270910,1751082667344,-490.0,0.00045479,60]
[368270911,1751082667354,-3505.37,0.00045479,60]
[368270912,1751082667364,-490.0,0.00045479,60]
[368270913,1751082667375,-1091.22,0.00045479,60]
[368270914,1751082667384,-699.23,0.00045479,60]
[368270915,1751082667393,-546.92831515,0.00045479,60]
[368270916,1751082667403,-1452.75,0.00045479,60]
[368270917,1751082667411,-523.22946976,0.00045479,60]
[368270918,1751082667422,-490.0,0.00045479,2]
[368270919,1751082667431,-686.97,0.00045479,60]
[368270920,1751082667440,-666.92,0.00045479,60]
[368270921,1751082667449,-846.36,0.00045479,60]
[368270922,1751082667458,-2423.56,0.00045479,60]
[368270923,1751082667468,-187.0,0.00045491,2]
[368270924,1751082667584,-1192.47,0.000455,14]
[368270925,1751082667597,-2747.16972668,0.00045541,15]
[368270926,1751082667608,-4821.60778517,0.00045566,15]
[368270927,1751082667618,-168.0,0.0004562,2]
[368270928,1751082667628,-243.19231677,0.00045629,28]
[368270929,1751082667637,-270.0,0.00045665,7]
[368270930,1751082667646,-512.08,0.00045679,7]
[368270931,1751082667658,-4000.0,0.00045679,7]
[368270932,1751082667667,-265.28683096,0.000457,44]
[368270933,1751082667676,-7700.0,0.000457,16]
[368270934,1751082667687,-150.0,0.0004572,2]
[368270935,1751082667696,-500.0,0.00045744,30]
[368270936,1751082667705,-500.0,0.00045752,60]
[368270937,1751082667715,-500.0,0.00045752,60]
[368270938,1751082667724,-749.99,0.00045752,60]
[368270939,1751082667733,-749.99,0.00045752,60]
[368270940,1751082667743,-1421.63,0.00045752,120]
[368270941,1751082667752,-1421.63,0.00045752,120]
[368270942,1751082667761,-5737.36,0.00045752,120]
[368270943,1751082667770,-5737.36,0.00045752,120]
[368270944,1751082667779,-568.85,0.00045752,60]
[368270945,1751082667788,-568.85,0.00045752,60]
[368270946,1751082667798,-568.85,0.00045752,60]
[368270947,1751082667807,-490.0,0.00045753,60]
[368270948,1751082667817,-472.682867,0.00045753,60]
[368270949,1751082667826,-922.75399,0.00045753,60]
[368270950,1751082667835,-840.133317,0.00045753,60]
[368270951,1751082667845,-531.63991956,0.00045753,60]
[368270952,1751082667854,-490.0,0.00045753,60]
[368270953,1751082667863,-490.0,0.00045753,60]
[368270954,1751082667873,-490.0,0.00045753,60]
[368270955,1751082667882,-490.0,0.00045753,60]
[368270956,1751082667891,-151.0,0.00045753,14]
[368270957,1751082667901,-490.0,0.00045753,60]
[368270958,1751082667910,-490.0,0.00045753,60]
[368270959,1751082667919,-490.0,0.00045753,60]
[368270960,1751082667928,-490.0,0.00045753,60]
[368270961,1751082667937,-490.0,0.00045753,60]
[368270962,1751082667947,-490.0,0.00045753,60]
[368270963,1751082667957,-490.0,0.00045753,60]
[368270964,1751082667967,-490.0,0.00045753,60]
[368270965,1751082667976,-490.0,0.00045753,60]
[368270966,1751082667986,-490.0,0.00045753,60]
[368270967,1751082667995,-490.0,0.00045753,60]
[368270968,1751082668004,-490.0,0.00045753,60]
[368270969,1751082668013,-490.0,0.00045753,60]
[368270970,1751082668023,-525.03654816,0.00045753,60]
[368270971,1751082668032,-490.0,0.00045753,60]
[368270972,1751082668042,-490.0,0.00045753,60]
[368270973,1751082668051,-490.0,0.00045753,60]
[368270974,1751082668062,-490.0,0.00045753,60]
[368270975,1751082668071,-191.96343665,0.00045753,60]
[368270976,1751082668081,-490.0,0.00045753,60]
[368270977,1751082668090,-636.95550527,0.00045753,60]
[368270978,1751082668101,-544.94037533,0.00045753,60]
[368270979,1751082668111,-490.0,0.00045753,60]
[368270980,1751082668121,-490.0,0.00045753,60]
[368270981,1751082668130,-490.0,0.00045753,60]
[368270982,1751082668139,-490.0,0.00045753,60]
[368270983,1751082668149,-499.15203373,0.00045753,60]
[368270984,1751082668158,-490.0,0.00045753,60]
[368270985,1751082668168,-490.0,0.00045753,60]
[368270986,1751082668177,-281.18204308,0.00045753,60]
[368270987,1751082668186,-490.0,0.00045753,60]
[368270988,1751082668195,-490.0,0.00045753,60]
[368270989,1751082668205,-490.0,0.00045753,60]
[368270990,1751082668215,-490.0,0.00045753,60]
[368270991,1751082668224,-288.89509575,0.00045753,60]
[368270992,1751082668234,-490.0,0.00045753,60]
[368270993,1751082668243,-585.67621483,0.00045753,60]
[368270994,1751082668252,-490.0,0.00045753,60]
[368270995,1751082668262,-490.0,0.00045753,60]
[368270996,1751082668271,-490.0,0.00045753,60]
[368270997,1751082668280,-490.0,0.00045753,60]
[368270998,1751082668290,-431.28234137,0.00045753,60]
[368270999,1751082668299,-490.0,0.00045753,60]
[368271000,1751082668309,-490.0,0.00045753,60]
[368271001,1751082668318,-578.06076167,0.00045753,60]
[368271002,1751082668327,-490.0,0.00045753,60]
[368271003,1751082668338,-490.0,0.00045753,60]
[368271004,1751082668348,-490.0,0.00045753,60]
[368271005,1751082668357,-490.0,0.00045753,60]
[368271006,1751082668366,-490.0,0.00045753,60]
[368271007,1751082668377,-490.0,0.00045753,60]
[368271008,1751082668386,-490.0,0.00045753,60]
[368271009,1751082668395,-490.0,0.00045753,60]
[368271010,1751082668406,-490.0,0.00045753,60]
[368271011,1751082668415,-490.0,0.00045753,60]
[368271012,1751082668425,-592.91,0.00045753,60]
[368271013,1751082668435,-490.0,0.00045753,60]
[368271014,1751082668444,-490.0,0.00045753,60]
[368271015,1751082668453,-490.0,0.00045753,60]
[368271016,1751082668463,-560.78472275,0.00045753,60]
[368271017,1751082668472,-490.0,0.00045753,60]
[368271018,1751082668482,-539.00523651,0.00045753,60]
[368271019,1751082668491,-490.0,0.00045753,60]
[368271020,1751082668501,-490.0,0.00045753,60]
[368271021,1751082668510,-490.0,0.00045753,60]
[368271022,1751082668519,-490.0,0.00045753,60]
[368271023,1751082668528,-490.0,0.00045753,60]
[368271024,1751082668537,-499.36,0.00045753,60]
[368271025,1751082668547,-490.0,0.00045753,60]
[368271026,1751082668556,-490.0,0.00045753,60]
[368271027,1751082668565,-490.0,0.00045753,60]
[368271028,1751082668574,-1075.6,0.00045753,60]
[368271029,1751082668583,-490.0,0.00045753,60]
[368271030,1751082668592,-490.0,0.00045753,60]
[368271031,1751082668601,-490.0,0.00045753,60]
[368271032,1751082668610,-490.0,0.00045753,60]
[368271033,1751082668619,-870.44,0.00045753,60]
[368271034,1751082668628,-490.0,0.00045753,60]
[368271035,1751082668638,-490.0,0.00045753,60]
[368271036,1751082668647,-490.0,0.00045753,60]
[368271037,1751082668656,-526.87511689,0.00045753,60]
[368271038,1751082668666,-526.9996072,0.00045753,60]
[368271039,1751082668675,-490.0,0.00045753,60]
[368271040,1751082668684,-490.0,0.00045753,60]
[368271041,1751082668693,-490.0,0.00045753,60]
[368271042,1751082668702,-490.0,0.00045753,60]
[368271043,1751082668712,-490.0,0.00045753,60]
[368271044,1751082668721,-490.0,0.00045753,60]
[368271045,1751082668731,-726.08,0.00045753,60]
[368271046,1751082668740,-934.18,0.00045753,60]
[368271047,1751082668749,-490.0,0.00045753,60]
[368271048,1751082668758,-690.12,0.00045753,60]
[368271049,1751082668768,-490.0,0.00045753,60]
[368271050,1751082668777,-490.0,0.00045753,60]
[368271051,1751082668786,-490.0,0.00045753,60]
[368271052,1751082668795,-490.0,0.00045753,60]
[368271053,1751082668805,-599.56446123,0.00045753,60]
[368271054,1751082668814,-544.93838908,0.00045753,60]
[368271055,1751082668824,-490.0,0.00045753,60]
[368271056,1751082668833,-709.03,0.00045753,60]
[368271057,1751082668843,-490.0,0.00045753,7]
[368271058,1751082668852,-490.0,0.00045753,60]
[368271059,1751082668860,-490.0,0.00045753,60]
[368271060,1751082668868,-490.0,0.00045753,60]
[368271061,1751082668877,-490.0,0.00045753,60]
[368271062,1751082668886,-564.61,0.00045753,60]
[368271063,1751082668895,-545.54,0.00045753,60]
[368271064,1751082668905,-490.0,0.00045753,60]
[368271065,1751082668914,-490.0,0.00045753,60]
[368271066,1751082668923,-886.57,0.00045753,60]
[368271067,1751082668932,-490.0,0.00045753,60]
[368271068,1751082668941,-490.0,0.00045753,60]
[368271069,1751082668951,-490.0,0.00045753,60]
[368271070,1751082668961,-490.0,0.00045753,60]
[368271071,1751082668971,-506.78,0.00045753,60]
[368271072,1751082668980,-490.0,0.00045753,60]
[368271073,1751082668989,-943.17,0.00045753,60]
[368271074,1751082668998,-490.0,0.00045753,60]
[368271075,1751082669008,-490.0,0.00045753,60]
[368271076,1751082669018,-490.0,0.00045753,60]
[368271077,1751082669027,-649.77,0.00045753,60]
[368271078,1751082669036,-490.0,0.00045753,60]
[368271079,1751082669045,-490.0,0.00045753,60]
[368271080,1751082669055,-794.82,0.00045753,60]
[368271081,1751082669064,-490.0,0.00045753,60]
[368271082,1751082669073,-490.0,0.00045753,60]
[368271083,1751082669083,-490.0,0.00045753,60]
[368271084,1751082669092,-490.0,0.00045753,60]
[368271085,1751082669101,-490.0,0.00045753,60]
[368271086,1751082669111,-490.0,0.00045753,60]
[368271087,1751082669120,-490.0,0.00045753,60]
[368271088,1751082669129,-490.0,0.00045753,60]
[368271089,1751082669139,-490.0,0.00045753,60]
[368271090,1751082669148,-490.0,0.00045753,60]
[368271091,1751082669157,-490.0,0.00045753,60]
[368271092,1751082669275,-878.01,0.00045753,60]
[368271093,1751082669285,-735.23,0.00045753,60]
[368271094,1751082669295,-490.0,0.00045753,60]
[368271095,1751082669304,-538.28949108,0.00045753,60]
[368271096,1751082669314,-490.0,0.00045753,60]
[368271097,1751082669324,-558.49946451,0.00045753,60]
[368271098,1751082669336,-490.0,0.00045753,60]
[368271099,1751082669349,-589.33,0.00045753,60]
[368271100,1751082669359,-490.0,0.00045753,60]
[368271101,1751082669371,-490.0,0.00045753,60]
[368271102,1751082669382,-490.0,0.00045753,60]
[368271103,1751082669393,-407.22225449,0.00045753,60]
[368271104,1751082669403,-490.0,0.00045753,60]
[368271105,1751082669412,-490.0,0.00045753,60]
[368271106,1751082669424,-607.47,0.00045753,60]
[368271107,1751082669434,-500.0,0.00045753,120]
[368271108,1751082669443,-544.71,0.00045753,60]
[368271109,1751082669452,-510.9,0.00045753,60]
[368271110,1751082669462,-411.00133859,0.00045753,60]
[368271111,1751082669471,-490.0,0.00045753,60]
[368271112,1751082669480,-490.0,0.00045753,60]
[368271113,1751082669490,-490.0,0.00045753,60]
[368271114,1751082669499,-490.0,0.00045753,60]
[368271115,1751082669509,-490.0,0.00045753,60]
[368271116,1751082669518,-490.0,0.00045753,60]
[368271117,1751082669528,-490.0,0.00045753,60]
[368271118,1751082669537,-490.0,0.00045753,60]
[368271119,1751082669546,-490.0,0.00045753,60]
[368271120,1751082669556,-490.0,0.00045753,60]
[368271121,1751082669565,-490.0,0.00045753,60]
[368271122,1751082669575,-490.0,0.00045753,60]
[368271123,1751082669585,-187.83380742,0.00045753,60]
[368271124,1751082669595,-530.0,0.00045753,60]
[368271125,1751082669605,-507.69137077,0.00045753,60]
[368271126,1751082669614,-490.0,0.00045753,60]
[368271127,1751082669624,-747.38,0.00045753,60]
[368271128,1751082669633,-490.0,0.00045753,60]
[368271129,1751082669642,-724.21,0.00045753,60]
[368271130,1751082669652,-490.0,0.00045753,60]
[368271131,1751082669661,-490.0,0.00045753,60]
[368271132,1751082669671,-662.39,0.00045753,60]
[368271133,1751082669681,-490.0,0.00045753,60]
[368271134,1751082669690,-551.32,0.00045753,60]
[368271135,1751082669700,-490.0,0.00045753,60]
[368271136,1751082669709,-490.0,0.00045753,60]
[368271137,1751082669718,-490.0,0.00045753,60]
[368271138,1751082669727,-490.0,0.00045753,60]
[368271139,1751082669737,-490.0,0.00045753,60]
[368271140,1751082669746,-490.0,0.00045753,60]
[368271141,1751082669755,-530.87,0.00045753,60]
[368271142,1751082669764,-224.785024,0.00045753,14]
[368271143,1751082669773,-490.0,0.00045753,60]
[368271144,1751082669781,-559.38,0.00045753,60]
[368271145,1751082669790,-490.0,0.00045753,60]
[368271146,1751082669799,-216.08965645,0.00045753,60]
[368271147,1751082669808,-224.785032,0.00045753,14]
[368271148,1751082669817,-490.0,0.00045753,60]
[368271149,1751082669826,-606.2642068,0.00045753,60]
[368271150,1751082669836,-493.98,0.00045753,60]
[368271151,1751082669846,-490.0,0.00045753,60]
[368271152,1751082669855,-490.0,0.00045753,60]
[368271153,1751082669864,-1173.16,0.00045753,60]
[368271154,1751082669874,-490.0,0.00045753,60]
[368271155,1751082669883,-857.13,0.00045753,60]
[368271156,1751082669893,-490.0,0.00045753,60]
[368271157,1751082669903,-973.28,0.00045753,60]
[368271158,1751082669913,-490.0,0.00045753,60]
[368271159,1751082669922,-490.0,0.00045753,60]
[368271160,1751082669931,-490.0,0.00045753,60]
[368271161,1751082669941,-490.0,0.00045753,60]
[368271162,1751082669951,-490.0,0.00045753,60]
[368271163,1751082669961,-490.0,0.00045753,60]
[368271164,1751082669971,-592.91,0.00045753,60]
[368271165,1751082669981,-490.0,0.00045753,60]
[368271166,1751082669990,-490.0,0.00045753,60]
[368271167,1751082669999,-490.0,0.00045753,60]
[368271168,1751082670009,-490.0,0.00045753,60]
[368271169,1751082670023,-413.91322421,0.00045753,60]
[368271170,1751082670040,-788.82,0.00045753,60]
[368271171,1751082670058,-490.0,0.00045753,60]
[368271172,1751082670078,-490.0,0.00045753,60]
[368271173,1751082670093,-490.0,0.00045753,60]
[368271174,1751082670111,-526.98,0.00045753,60]
[368271175,1751082670131,-490.0,0.00045753,60]
[368271176,1751082670151,-575.59,0.00045753,60]
[368271177,1751082670169,-490.0,0.00045753,120]
[368271178,1751082670186,-490.0,0.00045753,60]
[368271179,1751082670204,-660.57,0.00045753,60]
[368271180,1751082670219,-490.0,0.00045753,60]
[368271181,1751082670237,-490.0,0.00045753,60]
[368271182,1751082670251,-514.96,0.00045753,60]
[368271183,1751082670268,-490.0,0.00045753,60]
[368271184,1751082670282,-490.0,0.00045753,60]
[368271185,1751082670298,-490.0,0.00045753,60]
[368271186,1751082670313,-490.0,0.00045753,60]
[368271187,1751082670329,-490.0,0.00045753,60]
[368271188,1751082670347,-490.0,0.00045753,60]
[368271189,1751082670363,-490.0,0.00045753,60]
[368271190,1751082670380,-490.0,0.00045753,60]
[368271191,1751082670396,-490.0,0.00045753,60]
[368271192,1751082670412,-490.0,0.00045753,60]
[368271193,1751082670427,-552.13357595,0.00045753,60]
[368271194,1751082670443,-490.0,0.00045753,60]
[368271195,1751082670458,-490.0,0.00045753,60]
[368271196,1751082670472,-490.0,0.00045753,60]
[368271197,1751082670488,-536.48,0.00045753,60]
[368271198,1751082670504,-490.0,0.00045753,60]
[368271199,1751082670519,-513.62,0.00045753,7]
[368271200,1751082670533,-490.0,0.00045753,60]
[368271201,1751082670548,-530.11339301,0.00045753,60]
[368271202,1751082670563,-490.0,0.00045753,60]
[368271203,1751082670579,-490.0,0.00045753,60]
[368271204,1751082670594,-679.41,0.00045753,60]
[368271205,1751082670608,-490.0,0.00045753,60]
[368271206,1751082670623,-490.0,0.00045753,60]
[368271207,1751082670639,-490.0,0.00045753,60]
[368271208,1751082670653,-490.0,0.00045753,60]
[368271209,1751082670668,-517.5,0.00045753,60]
[368271210,1751082670683,-899.76,0.00045753,60]
[368271211,1751082670697,-490.0,0.00045753,60]
[368271212,1751082670712,-490.0,0.00045753,60]
[368271213,1751082670727,-504.27,0.00045753,60]
[368271214,1751082670741,-1167.54,0.00045753,60]
[368271215,1751082670757,-302.36901188,0.00045753,4]
[368271216,1751082670774,-490.0,0.00045753,60]